[Event "45th FIDE Olympiad 2024"]
[Site "Budapest"]
[Date "2024.09.18"]
[Round "7.95"]
[White "Cubas, Jose Fernando"]
[Black "Miranda Mesa, Elier"]
[Result "0-1"]
[ECO "B12"]
[WhiteElo "2417"]
[BlackElo "2512"]
[Annotator "TA"]
[PlyCount "83"]
[EventDate "2024.09.05"]
[EventType "team-tourn"]
[EventCountry "HUN"]
[SourceTitle "playchess.com"]
[Source "ChessBase"]
[SourceQuality "1"]
[WhiteTeam "Paraguay"]
[BlackTeam "Cuba"]
[WhiteTeamCountry "PAR"]
[BlackTeamCountry "CUB"]
[TimeControl "40/5400+30:1800+30"]

{[%evp 11,83,0,0,0,5,0,0,0,0,-36,19,12,36,29,35,-17,-14,-194,-193,-195,-191,-191,-201,-195,-158,-237,-230,-229,-239,-746,-366,-364,-350,-364,-369,-360,-362,-364,-363,-356,-317,-345,-345,-356,-343,-356,-355,-380,-376,-379,-372,-379,-382,-383,-374,-389,-402,-450,-450,-452,-455,-597,-593,-618,-626,-914,-892,-3115,-2433,-29983,-29984,-29984,-29985,-29983]} 1. e4 c6 2. d4 d5 3. e5 Bf5 4. h4 h5 5. c4 e6 6. Nc3 Ne7 7. Nge2 Nd7 8. Ng3 Bg6 9. Bg5 {The position is equal.} Qb6 10. Rc1 dxc4 ({Black should play} 10... Qxb2 $15 11. Bd3 f6 12. Bxg6+ Nxg6) 11. Bxc4 $11 O-O-O {[%cal Od7e5] And now ...Nxe5! would win.} 12. Na4 $1 Qc7 {[%cal Od7e5] ...Nxe5! would now be deadly.} 13. Qb3 (13. O-O $1 $14) 13... Nb6 14. Nc5 $2 {This costs White the game.} (14. Nxb6+ $1 $11 Qxb6 15. Qxb6 axb6 16. Be3) 14... Rxd4 $19 15. Bxe6+ fxe6 16. Qxe6+ Kb8 {[%cal Oe7d5] White must now prevent ...Ned5!} 17. O-O Bh7 {Hoping for ...Bg8.} 18. Qf7 {[#]} (18. Qb3 $17) 18... Ned5 $1 (18... Qxe5 $2 19. Rfe1 Bg6 (19... Qd5 20. Rxe7 Qxf7 21. Rxf7 $18) 20. Qxf8+ (20. Bxe7 $2 Qxe1+ 21. Rxe1 Bxf7 $19) (20. Rxe5 Bxf7 21. Bxe7 Bxa2 $11) 20... Rxf8 21. Rxe5 $18) 19. Qe8+ Qc8 20. Bd8 $2 {[#]} (20. Qxc8+ Kxc8 21. Ne6) 20... Bg6 21. Qxg6 Bxc5 (21... Qxd8 22. Ne6 Nf4 (22... Qxh4 $2 23. Qe8+ Nc8 24. Nf5 $18) 23. Nxf4 Rxf4 24. Rc3) 22. Bg5 Be7 23. Nf5 Bxg5 24. Nxd4 Bxc1 25. Rxc1 Qd7 26. e6 Nf4 $1 {[%csl LRd4,LRg6]} 27. exd7 ({Wrong is} 27. Qe4 $2 Qxd4 28. Re1 Qxe4 (28... Qxb2 29. Qxf4+ Kc8 30. e7 $11) 29. Rxe4 Nbd5 $19) 27... Nxg6 28. Rd1 Rd8 (28... Nxd7 $2 29. Nxc6+ bxc6 30. Rxd7 $19) 29. Ne6 Rxd7 30. Rxd7 Nxd7 31. Nxg7 Nf6 ({Much less strong is} 31... Nxh4 32. Nxh5 Ne5 33. f4 $19) 32. g3 Kc7 33. f3 Kd6 34. Kf2 Ke5 35. Ke3 Ne7 36. f4+ Kd5 37. Kf3 c5 38. g4 hxg4+ 39. Kg3 Ke4 {( -> ...Nf5+)} 40. h5 Nf5+ 41. Nxf5 Kxf5 42. h6 {Weighted Error Value: White=0.76/Black=0.27 (precise) .  Loses game:     	White=1     	---        Mistake:       	White=3     	Black=2      Inaccurate:     	White=3     	---        OK:         	White=10    	Black=17     Best:        	White=2     	Black=4      Strong:       	White=1     	Black=1} 0-1

[Event "45th FIDE Olympiad 2024"]
[Site "Budapest"]
[Date "2024.09.18"]
[Round "7.95"]
[White "Adeshole Beckley, Brian"]
[Black "Schneider, James U"]
[Result "1-0"]
[WhiteElo "1814"]
[BlackElo "1486"]
[PlyCount "119"]
[EventDate "2024.09.05"]
[EventType "team-tourn"]
[EventCountry "HUN"]
[WhiteTeam "Sierra Leone"]
[BlackTeam "Saint Vincent and the Grenadines"]
[WhiteTeamCountry "SIE"]
[TimeControl "40/5400+30:1800+30"]

1. d4 Nf6 2. c4 e6 3. Nf3 d5 4. Nc3 Bb4 5. Bg5 O-O 6. e3 b6 7. cxd5 exd5 8. Bd3 Bb7 9. O-O Be7 10. Qc2 h6 11. Bf4 Nbd7 12. Nb5 c6 13. Nd6 Bxd6 14. Bxd6 Re8 15. h3 Rc8 16. Rac1 Ne4 17. Bh2 c5 18. Qa4 c4 19. Bb1 a5 20. Bxe4 Bc6 21. Bh7+ Kxh7 22. Qc2+ Kg8 23. Qf5 Qf6 24. Qxf6 Nxf6 25. Ne5 Bb5 26. Rfe1 Nd7 27. Rc3 Nxe5 28. Bxe5 f6 29. Bh2 Ba6 30. a4 b5 31. axb5 Bxb5 32. Bd6 Ra8 33. g4 Re6 34. Bc5 Rae8 35. f3 Bc6 36. b3 Kf7 37. bxc4 dxc4 38. e4 g6 39. Ra1 Ba8 40. Rxa5 f5 41. Ra7+ Kg8 42. d5 Rf6 43. Bd4 Rf7 44. Rxc4 fxe4 45. fxe4 Rd8 46. Rxf7 Kxf7 47. Rc7+ Ke8 48. Rh7 Bxd5 49. Rh8+ Kd7 50. Rxd8+ Kxd8 51. exd5 h5 52. g5 Kd7 53. Be5 Ke7 54. Kf2 Kd7 55. Ke3 Ke7 56. Kd4 Kd7 57. Kc5 Ke7 58. Kc6 Kd8 59. d6 h4 60. Bf6+ 1-0

[Event "45th FIDE Olympiad 2024"]
[Site "Budapest"]
[Date "2024.09.18"]
[Round "7.96"]
[White "Almeida Quintana, Omar"]
[Black "Almiron, Antonio"]
[Result "1/2-1/2"]
[ECO "E12"]
[WhiteElo "2492"]
[BlackElo "2312"]
[Annotator "TA"]
[PlyCount "73"]
[EventDate "2024.09.05"]
[EventType "team-tourn"]
[EventCountry "HUN"]
[SourceTitle "playchess.com"]
[Source "ChessBase"]
[SourceQuality "1"]
[WhiteTeam "Cuba"]
[BlackTeam "Paraguay"]
[WhiteTeamCountry "CUB"]
[BlackTeamCountry "PAR"]
[TimeControl "40/5400+30:1800+30"]

{[%evp 16,73,-4,0,0,0,0,-20,-10,-8,-6,-17,-13,-6,-20,-8,-13,-36,0,0,0,0,12,0,0,-10,-18,-24,15,8,14,18,129,131,197,185,194,110,116,121,114,82,102,104,85,-223,156,150,154,0,0,0,0,0,0,0,0,0,0,0]} 1. d4 Nf6 2. Nf3 e6 3. c4 b6 4. a3 Bb7 5. Nc3 d5 6. cxd5 Nxd5 7. Bd2 Nd7 8. Qc2 c5 9. e4 Nxc3 10. Bxc3 cxd4 11. Nxd4 a6 12. g3 Be7 13. Bg2 O-O 14. O-O Rc8 15. Rfd1 Rc7 16. Bh3 {[%cal Oh3e6]} Bf6 17. Qe2 Re8 18. Bb4 Be7 {Wards off Bd6} 19. e5 Bc5 20. Bxc5 bxc5 21. Nc2 Qb8 22. f4 Nb6 23. Ne3 Rd8 (23... h6 $11) 24. f5 $16 Kh8 (24... Re7 $16) 25. fxe6 fxe6 26. Bxe6 ({White should try} 26. Rxd8+ $1 $18 Qxd8 27. Rf1 (27. Bxe6 Re7 $11)) 26... Re8 27. Qg4 {Strongly threatening Rd6. Black is weak on the dark squares} Rce7 (27... Rc6 28. Nf5 Qxe5 29. Re1 Qxb2 30. Bd5) 28. Rd6 (28. Nf5 {is interesting.} Qxe5 29. Nxe7 Qe3+ 30. Kf1) 28... Nc8 {[#]} 29. Nf5 {White has more active pieces.} Nxd6 30. exd6 {[%mdl 8192] [#]} (30. Nxe7 $16 {White wants to mate with Ng6+.} Rxe7 31. exd6 Qxd6 32. Rd1) 30... g6 $1 31. dxe7 {[%cal Oa1d1] Black must now prevent Rd1!} (31. Nxe7 $6 Qxd6 32. Nxg6+ hxg6 $14) 31... Qe5 {[#]} 32. Rf1 $2 Qxe6 $11 {The position is equal.} 33. Nh6 $1 ({Not} 33. Qa4 $2 Bc6 34. Qh4 gxf5 $19) 33... Qe3+ (33... Rxe7 $2 {perishes.} 34. Rf8+ Kg7 35. Rg8+ (35. Rf7+ Qxf7 36. Nxf7 Rxf7 $18) 35... Qxg8 36. Nxg8 Kxg8 37. Qg5 $18) 34. Rf2 Qe1+ 35. Rf1 {Dancing on a razor blade.} Qe3+ 36. Rf2 Qe1+ 37. Rf1 {Weighted Error Value: White=0.32/Black=0.26 (precise) .  Loses game:     	White=1     	---        Missed win:     	---       	Black=1      Mistake:       	White=2     	Black=2      Inaccurate:     	---       	Black=2      OK:         	White=6     	Black=7      Best:        	White=3     	Black=3      Strong:       	White=1     	---} 1/2-1/2

[Event "45th FIDE Olympiad 2024"]
[Site "Budapest"]
[Date "2024.09.18"]
[Round "7.97"]
[White "Meier, Georg"]
[Black "Kadric, Denis"]
[Result "1/2-1/2"]
[ECO "E62"]
[WhiteElo "2591"]
[BlackElo "2553"]
[Annotator "TA"]
[PlyCount "107"]
[EventDate "2024.09.05"]
[EventType "team-tourn"]
[EventCountry "HUN"]
[SourceTitle "playchess.com"]
[Source "ChessBase"]
[SourceQuality "1"]
[WhiteTeam "Uruguay"]
[BlackTeam "Montenegro"]
[WhiteTeamCountry "URU"]
[BlackTeamCountry "MNE"]
[TimeControl "40/5400+30:1800+30"]

{[%evp 26,107,25,11,31,28,29,20,26,17,20,22,37,21,5,14,10,18,21,16,20,14,15,-20,-20,-17,-11,-20,-26,-8,0,0,0,0,0,0,0,0,11,21,9,20,20,10,7,24,10,0,50,47,57,0,0,0,0,0,44,39,45,42,45,36,37,35,35,35,40,10,8,0,0,0,0,0,0,6,6,0,0,0,0,0,0,0]} 1. Nf3 Nf6 2. c4 d6 3. d4 g6 4. Nc3 Bg7 5. g3 Bf5 6. Bg2 Ne4 7. Nb1 Nf6 8. O-O c6 9. b3 O-O 10. Bb2 a5 11. Nc3 Ne4 12. Rc1 Nxc3 13. Bxc3 Be4 14. e3 {[%cal Be2e3,Be3e4][%mdl 32]} d5 15. Bh3 e6 16. Nd2 Bd3 17. Re1 Nd7 18. e4 Nb6 19. cxd5 cxd5 20. e5 Bh6 21. Qf3 Bb5 22. a4 Bd7 23. Qd3 Nc8 {[%cal Ob7b5]} 24. f4 {[#]} b5 $1 25. axb5 Na7 26. Nf3 Qb6 27. Bd2 {[%cal Of4f5]} Nxb5 28. Bf1 Rfb8 29. f5 Bf8 30. fxg6 fxg6 31. Qe3 a4 32. bxa4 Rxa4 {[%cal Rb5d4]} 33. Rb1 Qa7 {[%cal Rb5d4]} 34. Rb3 Na3 {[#] aiming for ...Nc2.} 35. Rxb8 Qxb8 36. Qf4 Be7 (36... Qe8 $11) 37. Bd3 $1 $14 Nc4 38. Rb1 {Inhibits Qb2.} (38. Bc1 $1 $14) 38... Qa8 $11 39. Bc1 {Ng5 would now be deadly.} Ra1 40. Ng5 {White wants to mate with Qf7+.} Bxg5 41. Qxg5 {Rxa1 is the strong threat.} Rxb1 42. Bxb1 Qf8 $1 43. Kg2 Na5 44. Bd3 Nc6 45. Be3 Be8 46. h4 Qa3 {The position is equal.} 47. Be2 Qb2 {[%csl LRd4,LRe2]} 48. Qg4 Bf7 (48... Nd8 {simplifies} 49. Bf2 Bb5 50. Bxb5 Qxb5 51. Qg5 Qe8) 49. Kf2 Ne7 50. Qg5 Nf5 51. Qd8+ Kg7 52. Qf6+ Kg8 53. Qd8+ Kg7 54. Qf6+ {Weighted Error Value: White=0.05 (flawless) /Black=0.04 (flawless) .  Mistake:       	White=1     	Black=1      Inaccurate:     	White=2     	Black=1      OK:         	White=16    	Black=19     Best:        	White=1     	Black=3      Strong:       	White=1     	Black=1      Brilliant:      	---       	Black=1} 1/2-1/2

[Event "45th FIDE Olympiad 2024"]
[Site "Budapest"]
[Date "2024.09.18"]
[Round "7.97"]
[White "Bhakta, Bahadur Monger"]
[Black "Kabamwanishi, Mashala"]
[Result "0-1"]
[WhiteElo "1911"]
[BlackElo "1914"]
[PlyCount "46"]
[EventDate "2024.09.05"]
[EventType "team-tourn"]
[EventCountry "HUN"]
[WhiteTeam "Bhutan"]
[BlackTeam "Democratic Republic of the Congo"]
[WhiteTeamCountry "BTN"]
[TimeControl "40/5400+30:1800+30"]

1. d4 Nf6 2. Nf3 d5 3. Bf4 c5 4. e3 Nc6 5. dxc5 e6 6. Nbd2 Bxc5 7. c3 O-O 8. Bd3 Re8 9. Ne5 Qb6 10. b4 Nxe5 11. Bxe5 Be7 12. Qf3 Nd7 13. Qh3 g6 14. Bd4 Qc7 15. f4 e5 16. g4 exd4 17. f5 Qxc3 18. fxg6 hxg6 19. Bxg6 fxg6 20. Qh6 Qxe3+ 21. Qxe3 dxe3 22. Nf3 Bxb4+ 23. Ke2 Ne5 {0-} 0-1

[Event "45th FIDE Olympiad 2024"]
[Site "Budapest"]
[Date "2024.09.18"]
[Round "7.98"]
[White "Petrov, Nikita"]
[Black "Rodriguez Vila, Andres"]
[Result "1-0"]
[ECO "E11"]
[WhiteElo "2574"]
[BlackElo "2417"]
[Annotator "TA"]
[PlyCount "91"]
[EventDate "2024.09.05"]
[EventType "team-tourn"]
[EventCountry "HUN"]
[SourceTitle "playchess.com"]
[Source "ChessBase"]
[SourceQuality "1"]
[WhiteTeam "Montenegro"]
[BlackTeam "Uruguay"]
[WhiteTeamCountry "MNE"]
[BlackTeamCountry "URU"]
[TimeControl "40/5400+30:1800+30"]

{[%evp 13,91,16,18,17,10,4,30,26,41,26,95,19,89,88,98,67,70,58,64,51,69,0,13,16,50,32,28,15,62,54,87,94,210,151,164,142,171,163,156,165,166,116,118,128,167,40,18,30,41,31,137,137,187,186,308,306,384,396,720,693,770,779,795,729,792,754,776,770,755,696,684,668,805,805,986,938,29968,29966,29968,29967]} 1. d4 e6 2. c4 Bb4+ 3. Nd2 c5 4. a3 Bxd2+ 5. Qxd2 cxd4 6. Nf3 Nf6 7. Nxd4 O-O {Black is weak on the dark squares} 8. b4 d5 9. e3 e5 {[%cal Be6e5,Be5e4][%mdl 32]} 10. Nf3 {White has an edge.} e4 11. Nd4 Nbd7 (11... dxc4 $11 {keeps the balance.} 12. Bxc4 Nbd7) 12. Bb2 (12. c5 $1 $16) 12... Ne5 (12... dxc4 $1 $11 {remains equal.} 13. Bxc4 Ne5) 13. c5 $16 Qe7 14. Rc1 Rd8 15. Qc3 Nfg4 16. Rc2 Qg5 17. Rd2 (17. Nb5 $14) 17... Bd7 $11 18. h3 Nf6 {[%cal Oe5d3] [#]} 19. Ne6 $1 Nd3+ 20. Qxd3 (20. Bxd3 Qxg2 (20... Bxe6 21. Bf1 $14) 21. Rf1 Bxe6 $17 (21... fxe6 22. Be2 $11)) 20... fxe6 (20... Bxe6 $11 21. Qb5 Rdb8) 21. Qd4 $14 Rdc8 22. h4 Qh6 (22... Qf5 $16 {keeps fighting.}) 23. Be2 Ne8 24. Qe5 a5 25. g4 {Threatens to win with g5.} Qf6 {[#]} 26. Qg3 {White is more active.} Qe7 27. g5 ({White should try} 27. O-O $18) 27... axb4 $16 28. axb4 Ra4 {[#]} 29. h5 (29. O-O $1 $18) 29... Rxb4 $14 30. h6 Qxc5 {[%cal Ob4b2] Hoping for ...Rxb2!} 31. O-O Rxb2 {White now steadily converts the win.} 32. Rxb2 $16 b5 (32... Rc7 $16 {was necessary.} 33. Rfb1 Bc8) 33. Rfb1 $18 {[%cal Re2b5]} Qd6 (33... Nd6 {might work better.} 34. Bg4 Qc7) 34. Qh4 ({Don't do} 34. Bxb5 Bxb5 35. Rxb5 Qxg3+ 36. fxg3 gxh6 $18) 34... Nc7 35. hxg7 {[%cal Og5g6] And now g6! would win.} Qe5 $2 (35... Qe7 36. Ra2 Qxg7) 36. Rc2 Ne8 37. Rxc8 Bxc8 38. Bxb5 ({Not} 38. Rxb5 Ba6 $18) 38... Nxg7 {[#]} 39. g6 $1 {[%mdl 512]} hxg6 40. Qd8+ Kh7 41. Qxc8 d4 42. exd4 Qg5+ 43. Kf1 e3 44. Qf8 Qd5 45. Bd3 ({Worse is} 45. fxe3 Qh1+ 46. Ke2 Qxb1 $11) 45... Qxd4 46. Ke2 {Weighted Error Value: White=0.18 (very precise) /Black=0.49.  Mistake:       	White=4     	Black=8      Inaccurate:     	White=1     	Black=4      OK:         	White=10    	Black=6      Best:        	White=3     	Black=2} 1-0

[Event "45th FIDE Olympiad 2024"]
[Site "Budapest"]
[Date "2024.09.18"]
[Round "7.99"]
[White "Vazquez, Facundo"]
[Black "Djukic, Nikola"]
[Result "1/2-1/2"]
[ECO "A62"]
[WhiteElo "2388"]
[BlackElo "2515"]
[Annotator "RC"]
[PlyCount "98"]
[EventDate "2024.09.05"]
[EventType "team-tourn"]
[EventCountry "HUN"]
[SourceTitle "playchess.com"]
[Source "ChessBase"]
[SourceQuality "1"]
[WhiteTeam "Uruguay"]
[BlackTeam "Montenegro"]
[WhiteTeamCountry "URU"]
[BlackTeamCountry "MNE"]
[TimeControl "40/5400+30:1800+30"]

1. d4 Nf6 2. c4 e6 3. g3 c5 4. d5 exd5 5. cxd5 d6 6. Nc3 g6 7. Bg2 Bg7 8. Nf3 O-O 9. O-O Re8 10. Bf4 h6 11. Qc1 g5 12. Bd2 Bf5 13. h4 g4 14. Ne1 Kh7 15. Nd3 a6 16. a4 Nbd7 17. Nf4 Ne5 18. Nd1 b5 19. Ne3 Bd7 20. Qc2+ Kg8 21. Bc3 Qe7 22. Rfd1 Rec8 23. Nf5 Bxf5 24. Qxf5 c4 25. Nh5 Nxh5 26. Qxh5 Rcb8 27. Be4 b4 28. Bd4 Rb7 29. Rac1 c3 30. bxc3 b3 31. Rb1 Rc8 32. Bh7+ Kf8 33. Bf5 Rc4 34. Bxg4 Rxa4 35. e4 a5 36. Qf5 Rc4 37. Be2 Rcc7 38. Qh7 a4 39. f4 a3 40. fxe5 dxe5 41. d6 Qxd6 42. Be3 Qg6 43. Rd8+ Ke7 44. Qg8 Qxg3+ 45. Kf1 Qh3+ 46. Kf2 Qh2+ 47. Kf3 Qh3+ 48. Kf2 Qh2+ 49. Kf3 Qh3+ 1/2-1/2

[Event "45th FIDE Olympiad 2024"]
[Site "Budapest"]
[Date "2024.09.18"]
[Round "7.99"]
[White "Suk, Raj Monger"]
[Black "Kasongo, Kazadi Olivier"]
[Result "1-0"]
[WhiteElo "1821"]
[BlackElo "1794"]
[PlyCount "53"]
[EventDate "2024.09.05"]
[EventType "team-tourn"]
[EventCountry "HUN"]
[WhiteTeam "Bhutan"]
[BlackTeam "Democratic Republic of the Congo"]
[WhiteTeamCountry "BTN"]
[TimeControl "40/5400+30:1800+30"]

1. e4 e5 2. Nf3 Nc6 3. Bc4 h6 4. d4 exd4 5. Nxd4 Qf6 6. Be3 Qg6 7. O-O Ne5 8. Bb3 c6 9. Bf4 Ng4 10. Nf5 Bc5 11. Qf3 N8f6 12. h3 h5 13. Bd6 Bxd6 14. Nxd6+ Ke7 15. Nxc8+ Raxc8 16. hxg4 hxg4 17. Qg3 Qh6 18. f3 gxf3 19. Qxf3 Qh4 20. Nc3 Ng4 21. Qh3 Qg5 22. Rxf7+ Kd6 23. Qg3+ Kc5 24. Rf5+ Qxf5 25. exf5 Nh2 26. Na4+ Kd4 27. Re1 1-0

[Event "45th FIDE Olympiad 2024"]
[Site "Budapest"]
[Date "2024.09.18"]
[Round "7.100"]
[White "Draskovic, Luka"]
[Black "Coppola, Claudio"]
[Result "1-0"]
[ECO "D02"]
[WhiteElo "2497"]
[BlackElo "2286"]
[Annotator "TA"]
[PlyCount "65"]
[EventDate "2024.09.05"]
[EventType "team-tourn"]
[EventCountry "HUN"]
[SourceTitle "playchess.com"]
[Source "ChessBase"]
[SourceQuality "1"]
[WhiteTeam "Montenegro"]
[BlackTeam "Uruguay"]
[WhiteTeamCountry "MNE"]
[BlackTeamCountry "URU"]
[TimeControl "40/5400+30:1800+30"]

{[%evp 9,65,18,7,20,15,6,55,22,54,22,32,18,55,57,64,50,75,69,86,46,55,56,56,43,108,104,131,128,173,175,159,141,183,169,184,169,204,182,176,165,193,191,206,183,209,198,433,437,427,421,863,839,859,852,716,708,723,688]} 1. Nf3 d5 2. g3 Nc6 3. d4 Bf5 4. Bg2 Nb4 5. Na3 e6 6. c3 Nc6 7. Qb3 a6 (7... Rb8 $11) 8. O-O {White is slightly better.} (8. Qxb7 $2 Na5 $19) (8. Nh4 $5 Bg4 9. h3 $14 (9. Qxb7 $2 {perishes.} Na5 $19)) 8... Nf6 9. Bg5 (9. Qxb7 $2 {loses.} Na5 $19) 9... Na5 10. Qd1 h6 11. Bxf6 gxf6 12. Nb1 b5 13. Nbd2 c6 14. Re1 Bg7 15. e4 Bh7 16. e5 f5 (16... fxe5 $14 17. Nxe5 O-O) 17. a4 $16 {[%cal Ba2a4,Ba4a5][%mdl 32]} O-O 18. b4 Nb7 19. Qe2 Qd7 20. Bf1 Rfc8 21. a5 Qe7 22. Qe3 Kh8 23. Bd3 Rg8 24. Kh1 Bg6 25. Rg1 Bh5 26. h3 Raf8 27. g4 fxg4 {[#]} (27... Bg6 28. gxf5 exf5) 28. hxg4 $18 {White is clearly winning.} Bg6 29. g5 hxg5 (29... Re8 $142 30. Bxg6 (30. gxh6 Bf8 $18) 30... fxg6 31. gxh6 Bf8) 30. Nxg5 {Intending Qh3+ and mate.} Bh6 31. Qh3 Kg7 {[#]} 32. Nxe6+ $1 {[%mdl 512]} Qxe6 33. Qxe6 {Weighted Error Value: White=0.09 (flawless) /Black=0.35.  Mistake:       	---       	Black=4      Inaccurate:     	White=3     	Black=3      OK:         	White=10    	Black=5      Best:        	---       	Black=1} 1-0

[Event "45th FIDE Olympiad 2024"]
[Site "Budapest"]
[Date "2024.09.18"]
[Round "7.101"]
[White "Kuybokarov, Temur"]
[Black "Henderson De La Fuente, Lance"]
[Result "0-1"]
[ECO "C67"]
[WhiteElo "2562"]
[BlackElo "2519"]
[Annotator "TA"]
[PlyCount "96"]
[EventDate "2024.09.05"]
[EventType "team-tourn"]
[EventCountry "HUN"]
[SourceTitle "playchess.com"]
[Source "ChessBase"]
[SourceQuality "1"]
[WhiteTeam "Australia"]
[BlackTeam "Andorra"]
[WhiteTeamCountry "AUS"]
[BlackTeamCountry "AND"]
[TimeControl "40/5400+30:1800+30"]

{[%evp 24,95,33,7,14,26,24,20,14,21,22,-17,33,0,0,0,0,0,0,0,0,0,0,0,0,-29,-20,-22,0,0,0,0,0,0,0,-45,-35,-56,-51,-66,-50,-46,-46,-50,-43,-118,-117,-195,-190,-181,-189,-157,-141,-266,-253,-336,-350,-337,-340,-350,-345,-433,-430,-464,-382,-482,-491,-826,-819,-789,-775,-29994,-29995,-29999]} 1. e4 e5 2. Nf3 Nc6 3. Bb5 Nf6 4. O-O Nxe4 5. d4 Nd6 6. Bxc6 dxc6 7. dxe5 Nf5 8. Qxd8+ Kxd8 9. Nc3 Ne7 10. h3 Ng6 {C67: Ruy Lopez: Berlin Defence: 4 0-0 Nxe4.} 11. Bg5+ Ke8 12. Rad1 Be6 13. Nd4 Bc4 14. Rfe1 h6 15. Bc1 Bb4 16. Bd2 Rd8 17. Nf5 $146 ({Predecessor:} 17. a3 Bc5 18. Nf5 Bf8 19. Ng3 Be6 20. Nh5 Bf5 21. Ne4 Rd4 22. Nhg3 Be6 23. f4 {½-½ Cinca,D (2360)-Gil,M (2603) ROM 85 Years-A email 2010}) 17... Bf8 (17... Rg8 $11) 18. Ne4 Be6 19. Nfg3 h5 (19... Bxa2 $2 20. b3 $18) (19... Nxe5 $2 20. f4 $18) 20. Ng5 Be7 21. Nxe6 fxe6 22. Ne4 Rf8 23. Bc3 Rd5 24. f3 h4 25. Kf1 b5 26. Bd4 a5 27. a4 Bb4 28. c3 Be7 29. Nf2 bxa4 30. Ra1 a3 $1 31. bxa3 c5 32. Be3 Nxe5 33. Rab1 Kd7 34. Rb5 {[#]} (34. a4 $15) 34... c4 $1 $17 35. Rd1 {[#]} (35. Rb2 $17 {was called for.}) 35... Kc6 $1 $19 ({Stronger than} 35... Bxa3 36. Rdxd5+ exd5 37. Rxd5+ Bd6 38. Rxa5 $11) 36. Rdxd5 exd5 37. Rxa5 Rb8 38. Bd4 (38. Ra6+ $17 Kd7 39. Ra5 Rb1+ 40. Ke2) 38... Nd3 $19 (38... Rb1+ 39. Ke2 Nd7 40. Ra6+ Kb5 41. Rg6 $16) 39. Ng4 Rb1+ 40. Ke2 Rb2+ 41. Kf1 Bd6 42. Ra8 Bg3 43. Be3 Rc2 (43... Rb1+ 44. Ke2 Nf4+ (44... Rb2+ $2 45. Kd1 $19) 45. Bxf4 Bxf4 46. Rf8 Rb2+ 47. Kd1) 44. a4 Rxc3 45. a5 (45. Ra6+ $142 Kd7 46. Ra5) 45... Ra3 $19 46. Bd4 c3 47. Ne3 Ra1+ 48. Ke2 Nf4# 0-1

[Event "45th FIDE Olympiad 2024"]
[Site "Budapest"]
[Date "2024.09.18"]
[Round "7.101"]
[White "Misambo, .J. Kilasa"]
[Black "Christopher, Art"]
[Result "1-0"]
[WhiteElo "1959"]
[BlackElo "1779"]
[PlyCount "73"]
[EventDate "2024.09.05"]
[EventType "team-tourn"]
[EventCountry "HUN"]
[WhiteTeam "Tanzania"]
[BlackTeam "British Virgin Islands"]
[WhiteTeamCountry "TAN"]
[BlackTeamCountry "IVB"]
[TimeControl "40/5400+30:1800+30"]

1. c4 e6 2. g3 Nf6 3. Bg2 c6 4. Nf3 d5 5. b3 Be7 6. Bb2 O-O 7. O-O Nbd7 8. d3 Qc7 9. Nbd2 e5 10. cxd5 Nxd5 11. Nc4 f6 12. e4 Nb4 13. d4 Rd8 14. Qe2 exd4 15. Bxd4 Bc5 16. a3 Na6 17. Bb2 Nf8 18. Rad1 Re8 19. b4 Nxb4 20. axb4 Bxb4 21. Qc2 a5 22. e5 b5 23. Nd6 Bxd6 24. exd6 Qf7 25. Qxc6 Bd7 26. Qd5 Qxd5 27. Rxd5 a4 28. Nd4 Rab8 29. Rc5 b4 30. Bd5+ Kh8 31. Bc6 a3 32. Bxd7 Nxd7 33. Rc7 Nf8 34. Nc6 axb2 35. Nxb8 Rxb8 36. d7 Ne6 37. Rc8+ 1-0

[Event "45th FIDE Olympiad 2024"]
[Site "Budapest"]
[Date "2024.09.18"]
[Round "7.102"]
[White "Fluvia Poyatos, Jordi"]
[Black "Sardana, Rishi"]
[Result "1/2-1/2"]
[ECO "B90"]
[WhiteElo "2438"]
[BlackElo "2477"]
[Annotator "ChessBase"]
[PlyCount "140"]
[EventDate "2024.09.05"]
[EventType "team-tourn"]
[EventCountry "HUN"]
[SourceTitle "playchess.com"]
[Source "ChessBase"]
[SourceQuality "1"]
[WhiteTeam "Andorra"]
[BlackTeam "Australia"]
[WhiteTeamCountry "AND"]
[BlackTeamCountry "AUS"]
[TimeControl "40/5400+30:1800+30"]

1. e4 c5 2. Nf3 d6 3. d4 cxd4 4. Nxd4 Nf6 5. Nc3 a6 6. h3 e5 7. Nde2 h5 8. g3 Be7 9. Bg2 b5 10. O-O Nbd7 11. a3 Bb7 12. Bg5 Rc8 13. Qd2 O-O 14. Rfd1 Qc7 15. Rac1 Nb6 16. b3 Rfd8 17. Qe1 Bc6 18. Be3 Qb7 19. f4 d5 20. fxe5 Nxe4 21. Nd4 Bxa3 22. Nxe4 dxe4 23. Nxc6 Qxc6 24. Rxd8+ Rxd8 25. Ra1 Bf8 26. Bf2 Nd5 27. Qxe4 Qe6 28. Qh4 Qxe5 29. Re1 Qc7 30. Qxh5 Nf6 31. Qf5 Rd2 32. Ra1 a5 33. c4 bxc4 34. bxc4 Qxc4 35. Rxa5 Qc1+ 36. Kh2 Qb2 37. Kg1 Rd8 38. Kh2 g6 39. Qf3 Ne4 40. Qxe4 Qxf2 41. Rd5 Rc8 42. Rd3 Rc1 43. h4 Re1 44. Qf3 Qg1+ 45. Kh3 Qb6 46. Qd5 Qc7 47. Qb7 Qe5 48. Qd5 Qe2 49. Rf3 Qe7 50. Qc4 Qd7+ 51. Kh2 Re5 52. Rd3 Qe7 53. Qc6 Re2 54. Qd5 Qe8 55. Rf3 Re5 56. Qc4 Bc5 57. Rd3 Bf8 58. Qc6 Qxc6 59. Bxc6 Re6 60. Bd5 Re2+ 61. Kh3 Kg7 62. Bf3 Re5 63. Kg2 Bc5 64. Rd5 Rxd5 65. Bxd5 f5 66. Kf3 Kf6 67. g4 fxg4+ 68. Kxg4 Bf2 69. Be4 Be1 70. Bxg6 Kxg6 1/2-1/2